fUSD/lending_fUSD_20250311
["ID","MTS","AMOUNT","RATE_DAILY","PERIOD"]
[355939435,1741722638358,-500.0,8.991e-05,2]
[355939436,1741722638367,-524.94,8.991e-05,2]
[355939437,1741722638376,-500.0,8.991e-05,2]
[355939438,1741722638385,-1703.83,8.991e-05,2]
[355939439,1741722638394,-781.71,8.991e-05,2]
[355939440,1741722638404,-500.0,8.991e-05,2]
[355939441,1741722638414,-1093.59,8.991e-05,2]
[355939442,1741722638424,-500.0,8.991e-05,2]
[355939443,1741722638435,-500.0,8.991e-05,2]
[355939444,1741722638444,-500.0,8.991e-05,2]
[355939445,1741722638453,-500.0,8.991e-05,2]
[355939446,1741722638463,-500.0,8.991e-05,2]
[355939447,1741722638473,-3372.2,8.991e-05,2]
[355939448,1741722638483,-1326.69,8.991e-05,2]
[355939449,1741722638492,-536.31259531,8.991e-05,2]
[355939450,1741722638502,-897.77,8.991e-05,2]
[355939451,1741722638511,-500.0,8.991e-05,2]
[355939452,1741722638520,-768.79,8.991e-05,2]
[355939453,1741722638529,-500.0,8.991e-05,2]
[355939454,1741722638539,-500.0,8.991e-05,2]
[355939455,1741722638549,-500.0,8.991e-05,2]
[355939456,1741722638558,-1473.75,8.991e-05,2]
[355939457,1741722638568,-1489.42,8.991e-05,2]
[355939458,1741722638577,-570.76,8.991e-05,2]
[355939459,1741722638586,-500.0,8.991e-05,2]
[355939460,1741722638595,-500.0,8.991e-05,2]
[355939461,1741722638604,-1077.47,8.991e-05,2]
[355939462,1741722638614,-587.13,8.991e-05,2]
[355939463,1741722638623,-500.0,8.991e-05,2]
[355939464,1741722638632,-4330.21,8.991e-05,2]
[355939465,1741722638641,-907.61,8.991e-05,2]
[355939466,1741722638650,-615.84,8.991e-05,2]
[355939467,1741722638660,-1377.23,8.991e-05,2]
[355939468,1741722638669,-906.71,8.991e-05,2]
[355939469,1741722638679,-1184.83,8.991e-05,2]
[355939470,1741722638688,-519.04,8.991e-05,2]
[355939471,1741722638697,-500.0,8.991e-05,2]
[355939472,1741722638706,-500.0,8.991e-05,2]
[355939473,1741722638715,-500.0,8.991e-05,2]
[355939474,1741722638725,-631.05,8.991e-05,2]
[355939475,1741722638734,-624.68,8.991e-05,2]
[355939476,1741722638743,-500.0,8.991e-05,2]
[355939477,1741722638753,-1428.77,8.991e-05,2]
[355939478,1741722638762,-1298.89,8.991e-05,2]
[355939479,1741722638771,-549.18,8.991e-05,2]
[355939480,1741722638781,-1540.455152,8.991e-05,2]
[355939481,1741722638790,-527.79,8.991e-05,2]
[355939482,1741722638799,-887.6,8.991e-05,2]
[355939483,1741722638808,-500.0,8.991e-05,2]
[355939484,1741722638818,-500.0,8.991e-05,2]
[355939485,1741722638827,-900.27,8.991e-05,2]
[355939486,1741722638837,-500.0,8.991e-05,2]
[355939487,1741722638846,-500.0,8.991e-05,2]
[355939488,1741722638855,-150.424535,8.991e-05,2]
[355939489,1741722638864,-1173.97,8.991e-05,2]
[355939490,1741722638874,-1102.66,8.991e-05,2]
[355939491,1741722638884,-500.0,8.991e-05,2]
[355939492,1741722638895,-580.34,8.991e-05,2]
[355939493,1741722638905,-500.0,8.991e-05,2]
[355939494,1741722638914,-701.97,8.991e-05,2]
[355939495,1741722638923,-721.63,8.991e-05,2]
[355939496,1741722638932,-153.801571,8.991e-05,2]
[355939497,1741722638942,-548.82,8.991e-05,2]
[355939498,1741722638951,-152.872762,8.991e-05,2]
[355939499,1741722638961,-500.0,8.991e-05,2]
[355939500,1741722638971,-610.17,8.991e-05,2]
[355939501,1741722638980,-3627.41,8.991e-05,2]
[355939502,1741722638990,-1651.56,8.991e-05,2]
[355939503,1741722638999,-500.0,8.991e-05,2]
[355939504,1741722639008,-500.0,8.991e-05,2]
[355939505,1741722639017,-500.0,8.991e-05,2]
[355939506,1741722639027,-500.0,8.991e-05,2]
[355939507,1741722639036,-2569.99,8.991e-05,2]
[355939508,1741722639046,-500.0,8.991e-05,2]
[355939509,1741722639056,-1298.09,8.991e-05,2]
[355939510,1741722639065,-1721.48,8.991e-05,2]
[355939511,1741722639075,-500.0,8.991e-05,2]
[355939512,1741722639084,-500.0,8.991e-05,2]
[355939513,1741722639093,-570.29900027,8.991e-05,2]
[355939514,1741722639103,-500.0,8.991e-05,2]
[355939515,1741722639112,-1567.67,8.991e-05,2]
[355939516,1741722639121,-615.06,8.991e-05,2]
[355939517,1741722639130,-500.0,8.991e-05,2]
[355939518,1741722639140,-559.11,8.991e-05,2]
[355939519,1741722639149,-1532.78,8.991e-05,2]
[355939520,1741722639159,-500.0,8.991e-05,2]
[355939521,1741722639168,-886.16,8.991e-05,2]
[355939522,1741722639177,-500.0,8.991e-05,2]
[355939523,1741722639187,-500.0,8.991e-05,2]
[355939524,1741722639196,-2398.82,8.991e-05,2]
[355939525,1741722639205,-1660.22,8.991e-05,2]
[355939526,1741722639215,-500.0,8.991e-05,2]
[355939527,1741722639224,-355.70220074,8.991e-05,2]
[355939528,1741722639233,-500.0,8.991e-05,2]
[355939529,1741722639243,-1525.87,8.991e-05,2]
[355939530,1741722639252,-500.0,8.991e-05,2]
[355939531,1741722639261,-1864.84,8.991e-05,2]
[355939532,1741722639270,-2350.77,8.991e-05,2]
[355939533,1741722639279,-548.15485465,8.991e-05,2]
[355939534,1741722639288,-500.0,8.991e-05,2]
[355939535,1741722639298,-500.0,8.991e-05,2]
[355939536,1741722639307,-1252.81,8.991e-05,2]
[355939537,1741722639318,-1152.25,8.991e-05,2]
[355939538,1741722639327,-500.0,8.991e-05,2]
[355939539,1741722639336,-829.85,8.991e-05,2]
[355939540,1741722639345,-500.0,8.991e-05,2]
[355939541,1741722639355,-552.39,8.991e-05,2]
[355939542,1741722639364,-500.0,8.991e-05,2]
[355939543,1741722639373,-500.0,8.991e-05,2]
[355939544,1741722639382,-500.0,8.991e-05,2]
[355939545,1741722639391,-1019.56,8.991e-05,2]
[355939546,1741722639400,-1299.73,8.991e-05,2]
[355939547,1741722639409,-586.21,8.991e-05,2]
[355939548,1741722639418,-1562.2,8.991e-05,2]
[355939549,1741722639428,-500.0,8.991e-05,2]
[355939550,1741722639438,-500.0,8.991e-05,2]
[355939551,1741722639448,-2019.35,8.991e-05,2]
[355939552,1741722639457,-644.59,8.991e-05,2]
[355939553,1741722639466,-824.66,8.991e-05,2]
[355939554,1741722639475,-1836.59,8.991e-05,2]
[355939555,1741722639485,-772.44,8.991e-05,2]
[355939556,1741722639495,-1640.52,8.991e-05,2]
[355939557,1741722639504,-500.0,8.991e-05,2]
[355939558,1741722639513,-616.35,8.991e-05,2]
[355939559,1741722639522,-2380.78,8.991e-05,2]
[355939560,1741722639531,-1309.68,8.991e-05,2]
[355939561,1741722639540,-2369.98,8.991e-05,2]
[355939562,1741722639549,-500.0,8.991e-05,2]
[355939563,1741722639559,-1372.53,8.991e-05,2]
[355939564,1741722639569,-500.0,8.991e-05,2]
[355939565,1741722639579,-500.0,8.991e-05,2]
[355939566,1741722639595,-500.0,8.991e-05,2]
[355939567,1741722639615,-1683.76,8.991e-05,2]
[355939568,1741722639628,-606.67,8.991e-05,2]
[355939569,1741722639643,-2849.61,8.991e-05,2]
[355939570,1741722639657,-799.62,8.991e-05,2]
[355939571,1741722639673,-1114.83,8.991e-05,2]
[355939572,1741722639688,-500.0,8.991e-05,2]
[355939573,1741722639702,-673.71,8.991e-05,2]
[355939574,1741722639712,-500.0,8.991e-05,2]
[355939575,1741722639728,-2278.21,8.991e-05,2]
[355939576,1741722639741,-500.0,8.991e-05,2]
[355939577,1741722639756,-712.97,8.991e-05,2]
[355939578,1741722639771,-562.67,8.991e-05,2]
[355939579,1741722639785,-973.49,8.991e-05,2]
[355939580,1741722639801,-605.6,8.991e-05,2]
[355939581,1741722639816,-577.31,8.991e-05,2]
[355939582,1741722639831,-820.72,8.991e-05,2]
[355939583,1741722639846,-500.0,8.991e-05,2]
[355939584,1741722639861,-1595.22,8.991e-05,2]
[355939585,1741722639875,-987.28,8.991e-05,2]
[355939586,1741722639888,-500.0,8.991e-05,2]
[355939587,1741722639902,-2794.47,8.991e-05,2]
[355939588,1741722639917,-1042.85,8.991e-05,2]
[355939589,1741722639932,-361.56957582,8.991e-05,2]
[355939590,1741722639942,-1141.46,8.991e-05,2]
[355939591,1741722639955,-500.0,8.991e-05,2]
[355939592,1741722639971,-596.5114548,8.991e-05,2]
[355939593,1741722639984,-850.56,8.991e-05,2]
[355939594,1741722639995,-500.0,8.991e-05,2]
[355939595,1741722640008,-878.02,8.991e-05,2]
[355939596,1741722640021,-891.89,8.991e-05,2]
[355939597,1741722640035,-4782.92,8.991e-05,2]
[355939598,1741722640054,-500.0,8.991e-05,2]
[355939599,1741722640068,-746.55,8.991e-05,2]
[355939600,1741722640081,-500.0,8.991e-05,2]
[355939601,1741722640094,-571.03764828,8.991e-05,2]
[355939602,1741722640107,-2550.9,8.991e-05,2]
[355939603,1741722640120,-2013.85,8.991e-05,2]
[355939604,1741722640132,-1361.42,8.991e-05,2]
[355939605,1741722640146,-532.61,8.991e-05,2]
[355939606,1741722640158,-554.97358621,8.991e-05,2]
[355939607,1741722640171,-500.0,8.991e-05,2]
[355939608,1741722640184,-695.93,8.991e-05,2]
[355939609,1741722640197,-500.0,8.991e-05,2]
[355939610,1741722640210,-500.0,8.991e-05,2]
[355939611,1741722640222,-1997.82,8.991e-05,2]
[355939612,1741722640235,-500.0,8.991e-05,2]
[355939613,1741722640248,-808.52,8.991e-05,2]
[355939614,1741722640262,-1177.24,8.991e-05,2]
[355939615,1741722640275,-2530.24,8.991e-05,2]
[355939616,1741722640288,-1075.15,8.991e-05,2]
[355939617,1741722640301,-3653.53,8.991e-05,2]
[355939618,1741722640313,-1328.67,8.991e-05,2]
[355939619,1741722640326,-607.05,8.991e-05,2]
[355939620,1741722640338,-914.7,8.991e-05,2]
[355939621,1741722640351,-1919.12,8.991e-05,2]
[355939622,1741722640364,-887.28,8.991e-05,2]
[355939623,1741722640377,-861.32,8.991e-05,2]
[355939625,1741722640390,-500.0,8.991e-05,2]
[355939626,1741722640402,-667.77,8.991e-05,2]
[355939627,1741722640415,-1034.49,8.991e-05,2]
[355939628,1741722640428,-165.00327011,8.991e-05,2]
[355939629,1741722640441,-500.0,8.991e-05,2]
[355939630,1741722640453,-565.25,8.991e-05,2]
[355939631,1741722640465,-606.74,8.991e-05,2]
[355939632,1741722640478,-565.05,8.991e-05,2]
[355939633,1741722640490,-705.11,8.991e-05,2]
[355939634,1741722640502,-500.0,8.991e-05,2]
[355939635,1741722640515,-910.84,8.991e-05,2]
[355939636,1741722640527,-1090.4,8.991e-05,2]
[355939637,1741722640540,-674.9,8.991e-05,2]
[355939638,1741722640553,-500.0,8.991e-05,2]
[355939639,1741722640566,-500.0,8.992e-05,2]
[355939641,1741722640579,-609.41,8.992e-05,2]
[355939644,1741722640592,-500.0,8.992e-05,2]
[355939645,1741722640605,-590.64,8.992e-05,2]
[355939646,1741722640617,-500.0,8.992e-05,2]
[355939647,1741722640629,-553.33260377,8.992e-05,2]
[355939648,1741722640643,-485.74582643,8.992e-05,2]
[355939649,1741722640656,-1612.44,8.992e-05,2]
[355939650,1741722640669,-693.51,8.992e-05,2]
[355939651,1741722640681,-500.0,8.992e-05,2]
[355939652,1741722640694,-500.0,8.992e-05,2]
[355939653,1741722640707,-500.0,8.992e-05,2]
[355939654,1741722640719,-906.41,8.992e-05,2]
[355939655,1741722640732,-500.0,8.992e-05,2]
[355939656,1741722640744,-94.42534369,8.992e-05,2]
[355939657,1741722640764,-405.57465631,8.992e-05,2]
[355939658,1741722640776,-500.0,8.992e-05,2]
[355939659,1741722640788,-249.73146219,8.992e-05,2]
[355939660,1741722641534,-500.0,8.991e-05,2]
[355939661,1741722641547,-250.26853781,8.992e-05,2]
[355939662,1741722641559,-194.36649219,8.992e-05,2]
[355939663,1741722641572,-305.63350781,8.992e-05,2]
[355939664,1741722641581,-500.0,8.992e-05,2]
[355939665,1741722641590,-575.78,8.992e-05,2]
[355939666,1741722641599,-500.0,8.992e-05,2]
[355939667,1741722641608,-500.0,8.992e-05,2]
[355939668,1741722641617,-394.52649984,8.992e-05,2]
[355939669,1741722641629,-105.47350016,8.992e-05,2]
[355939670,1741722641638,-503.51,8.992e-05,2]
[355939671,1741722641647,-500.0,8.992e-05,2]
[355939672,1741722641657,-500.0,8.992e-05,2]
[355939673,1741722641666,-527.68,8.992e-05,2]
[355939674,1741722642077,-997.01,8.992e-05,2]
[355939675,1741722642103,-500.0,8.992e-05,2]
[355939676,1741722642129,-500.0,8.992e-05,2]
[355939677,1741722642139,-500.0,8.992e-05,2]
[355939678,1741722642149,-500.0,8.992e-05,2]
[355939679,1741722642158,-500.0,8.992e-05,2]
[355939680,1741722642167,-52.59639496,8.992e-05,2]
[355939681,1741722642186,-447.40360504,8.992e-05,2]
[355939682,1741722642196,-95.69730567,8.992e-05,2]
[355939683,1741722642207,-959.78269433,8.992e-05,2]
[355939684,1741722642216,-1270.63,8.992e-05,2]
[355939685,1741722642226,-500.0,8.992e-05,2]
[355939686,1741722642235,-500.0,8.992e-05,2]
[355939687,1741722642245,-240.12377704,8.992e-05,2]
[355939688,1741722642261,-259.87622296,8.992e-05,2]
[355939689,1741722642270,-744.12,8.992e-05,2]
[355939690,1741722642279,-85.79228088,8.992e-05,2]
[355939691,1741722642780,-424.93771912,8.992e-05,2]
[355939692,1741722642789,-985.47,8.992e-05,2]
[355939693,1741722642798,-1371.76,8.992e-05,2]
[355939694,1741722642807,-593.42,8.992e-05,2]
[355939695,1741722642818,-500.0,8.992e-05,2]
[355939696,1741722642828,-500.0,8.992e-05,2]
[355939697,1741722642839,-500.0,8.992e-05,2]
[355939698,1741722642849,-500.0,8.992e-05,2]
[355939699,1741722642859,-500.0,8.992e-05,2]
[355939700,1741722642869,-500.0,8.992e-05,2]
[355939701,1741722642879,-500.0,8.992e-05,2]
[355939703,1741722642891,-500.0,8.992e-05,2]
[355939705,1741722642907,-500.0,8.992e-05,2]
[355939707,1741722642917,-500.0,8.992e-05,2]
[355939709,1741722642927,-507.58,8.992e-05,2]
[355939711,1741722642939,-328.37883047,8.992e-05,2]
[355939713,1741722642949,-625.74,8.992e-05,2]
[355939715,1741722642959,-500.0,8.992e-05,2]
[355939717,1741722642969,-764.64,8.992e-05,2]
[355939718,1741722642979,-500.0,8.992e-05,2]
[355939719,1741722642988,-501.55,8.992e-05,2]
[355939720,1741722642998,-500.0,8.992e-05,2]
[355939721,1741722643008,-500.0,8.992e-05,2]
[355939722,1741722643017,-500.0,8.992e-05,2]
[355939723,1741722643027,-500.0,8.992e-05,2]
[355939724,1741722643037,-500.0,8.992e-05,2]
[355939725,1741722643046,-500.0,8.992e-05,2]
[355939726,1741722643056,-500.0,8.992e-05,2]
[355939727,1741722643067,-500.0,8.992e-05,2]
[355939728,1741722643077,-1411.12,8.992e-05,2]
[355939729,1741722643086,-500.0,8.992e-05,2]
[355939730,1741722643097,-500.0,8.992e-05,2]
[355939731,1741722643106,-500.0,8.992e-05,2]
[355939732,1741722643116,-500.0,8.992e-05,2]
[355939733,1741722643125,-500.0,8.992e-05,2]
[355939734,1741722643135,-500.0,8.992e-05,2]
[355939735,1741722643144,-500.0,8.992e-05,2]
[355939736,1741722643154,-500.0,8.992e-05,2]
[355939737,1741722643163,-500.0,8.992e-05,2]
[355939738,1741722643173,-500.0,8.992e-05,2]
[355939739,1741722643183,-500.0,8.992e-05,2]
[355939740,1741722643193,-500.0,8.992e-05,2]
[355939741,1741722643204,-1208.47,8.992e-05,2]
[355939742,1741722643214,-500.0,8.992e-05,2]
[355939743,1741722643224,-1361.99,8.992e-05,2]
[355939744,1741722643234,-500.0,8.992e-05,2]
[355939745,1741722643243,-1405.63,8.992e-05,2]
[355939746,1741722643252,-577.3,8.992e-05,2]
[355939747,1741722643262,-500.0,8.992e-05,2]
[355939748,1741722643271,-454.76075279,8.992e-05,2]
[355939749,1741722643281,-506.95184098,8.992e-05,2]
[355939750,1741722643290,-500.0,8.992e-05,2]
[355939751,1741722643300,-320.28725712,8.992e-05,2]
[355939752,1741722643309,-500.0,8.992e-05,2]
[355939753,1741722643319,-669.12,8.992e-05,2]
[355939754,1741722643329,-500.0,8.992e-05,2]
[355939755,1741722643338,-500.0,8.992e-05,2]
[355939756,1741722643347,-500.0,8.992e-05,2]
[355939757,1741722643356,-500.0,8.992e-05,2]
[355939758,1741722643365,-500.0,8.992e-05,2]
[355939759,1741722643374,-500.0,8.992e-05,2]
[355939760,1741722643383,-500.0,8.992e-05,2]
[355939761,1741722643392,-294.70631534,8.992e-05,2]
[355939762,1741722643402,-500.0,8.992e-05,2]
[355939763,1741722643411,-256.66937698,8.992e-05,2]
[355939764,1741722643420,-500.0,8.992e-05,2]
[355939765,1741722643431,-500.0,8.992e-05,2]
[355939766,1741722643440,-500.0,8.992e-05,2]
[355939767,1741722643450,-500.0,8.992e-05,2]
[355939769,1741722643460,-500.0,8.992e-05,2]
[355939771,1741722643469,-500.0,8.992e-05,2]
[355939772,1741722643479,-472.22912301,8.992e-05,2]
[355939773,1741722643490,-534.46,8.992e-05,2]
[355939774,1741722643499,-532.68,8.992e-05,2]
[355939776,1741722643509,-500.0,8.992e-05,2]
[355939777,1741722643519,-500.0,8.992e-05,2]
[355939779,1741722643528,-500.0,8.992e-05,2]
[355939781,1741722643538,-500.0,8.992e-05,2]
[355939783,1741722643547,-539.09698415,8.992e-05,2]
[355939784,1741722643556,-500.0,8.992e-05,2]
[355939785,1741722643568,-1195.18,8.992e-05,2]
[355939786,1741722643578,-1832.62,8.992e-05,2]
[355939787,1741722643587,-616.71,8.992e-05,2]
[355939788,1741722643597,-500.0,8.992e-05,2]
[355939789,1741722643607,-500.0,8.992e-05,2]
[355939790,1741722643616,-679.07,8.992e-05,2]
[355939791,1741722643625,-618.71832837,8.992e-05,2]
[355939792,1741722643635,-577.64432476,8.992e-05,2]
[355939793,1741722643644,-500.0,8.992e-05,2]
[355939794,1741722643653,-500.0,8.992e-05,2]
[355939795,1741722643663,-1345.46,8.992e-05,2]
[355939796,1741722643672,-500.0,8.992e-05,2]
[355939797,1741722643681,-525.0,8.992e-05,2]
[355939798,1741722643691,-192.50342705,8.992e-05,2]
[355939799,1741722643700,-500.0,8.992e-05,2]
[355939800,1741722643710,-500.0,8.992e-05,2]
[355939801,1741722643720,-500.0,8.992e-05,2]
[355939802,1741722643729,-538.43,8.992e-05,2]
[355939803,1741722643739,-755.77,8.992e-05,2]
[355939804,1741722643749,-500.0,8.992e-05,2]
[355939805,1741722643759,-565.55451409,8.992e-05,2]
[355939806,1741722643769,-509.1,8.992e-05,2]
[355939807,1741722643780,-805.61,8.992e-05,2]
[355939808,1741722643790,-500.0,8.992e-05,2]
[355939809,1741722643800,-582.48,8.992e-05,2]
[355939810,1741722643810,-500.0,8.992e-05,2]
[355939811,1741722643826,-500.0,8.992e-05,2]
[355939812,1741722643836,-500.0,8.992e-05,2]
[355939813,1741722643846,-1233.29,8.992e-05,2]
[355939814,1741722643856,-500.0,8.992e-05,2]
[355939815,1741722643865,-517.85,8.992e-05,2]
[355939816,1741722643874,-1588.92,8.992e-05,2]
[355939817,1741722643884,-500.0,8.992e-05,2]
[355939818,1741722643896,-500.0,8.992e-05,2]
[355939819,1741722643906,-500.0,8.992e-05,2]
[355939820,1741722643916,-1331.36,8.992e-05,2]
[355939821,1741722643927,-500.0,8.992e-05,2]
[355939822,1741722643936,-500.0,8.992e-05,2]
[355939823,1741722643947,-500.0,8.992e-05,2]
[355939824,1741722643956,-500.0,8.992e-05,2]
[355939825,1741722643966,-500.0,8.992e-05,2]
[355939826,1741722643977,-500.0,8.992e-05,2]
[355939827,1741722643987,-1799.39,8.992e-05,2]
[355939828,1741722643996,-500.0,8.992e-05,2]
[355939829,1741722644005,-500.0,8.992e-05,2]
[355939830,1741722644015,-500.0,8.992e-05,2]
[355939831,1741722644025,-1023.35,8.992e-05,2]
[355939832,1741722644034,-1252.21,8.992e-05,2]
[355939833,1741722644044,-1288.22,8.992e-05,2]
[355939834,1741722644054,-500.0,8.992e-05,2]
[355939835,1741722644068,-279.96400028,8.992e-05,2]
[355939836,1741722644079,-621.15,8.992e-05,2]
[355939837,1741722644089,-500.0,8.992e-05,2]
[355939838,1741722644099,-500.0,8.992e-05,2]
[355939839,1741722644109,-174.48907376,8.992e-05,2]
[355939840,1741722644119,-331.84756062,8.992e-05,2]
[355939841,1741722644160,-168.15243938,8.992e-05,2]
[355939842,1741722644170,-500.0,8.992e-05,2]
[355939843,1741722644180,-500.0,8.992e-05,2]
[355939844,1741722644189,-500.0,8.992e-05,2]
[355939845,1741722644199,-500.0,8.992e-05,2]
[355939846,1741722644209,-500.0,8.992e-05,2]
[355939847,1741722644218,-970.6,8.992e-05,2]
[355939848,1741722644228,-1453.97,8.992e-05,2]
[355939849,1741722644237,-500.0,8.992e-05,2]
[355939850,1741722644247,-500.0,8.992e-05,2]
[355939851,1741722644256,-540.16217103,8.992e-05,2]
[355939852,1741722644266,-500.0,8.992e-05,2]
[355939853,1741722644275,-1801.8,8.992e-05,2]
[355939854,1741722644284,-500.0,8.992e-05,2]
[355939855,1741722644293,-500.0,8.992e-05,2]
[355939856,1741722644303,-500.0,8.992e-05,2]
[355939857,1741722644314,-500.0,8.992e-05,2]
[355939858,1741722644323,-500.0,8.992e-05,2]
[355939859,1741722644333,-500.0,8.992e-05,2]
[355939860,1741722644343,-500.0,8.992e-05,2]
[355939861,1741722644353,-946.56,8.992e-05,2]
[355939862,1741722644362,-500.0,8.992e-05,2]
[355939863,1741722644371,-549.5,8.992e-05,2]
[355939864,1741722644380,-500.0,8.992e-05,2]
[355939865,1741722644390,-500.0,8.992e-05,2]
[355939866,1741722644400,-500.0,8.992e-05,2]
[355939867,1741722644410,-951.93,8.992e-05,2]
[355939868,1741722644419,-386.82940191,8.992e-05,2]
[355939869,1741722644430,-1418.62,8.992e-05,2]
[355939870,1741722644439,-500.0,8.992e-05,2]
[355939871,1741722644449,-500.0,8.992e-05,2]
[355939872,1741722644458,-507.15,8.992e-05,2]
[355939873,1741722644468,-608.5,8.992e-05,2]
[355939874,1741722644477,-1178.56,8.992e-05,2]
[355939875,1741722644486,-300.17894154,8.992e-05,2]
[355939876,1741722644496,-500.0,8.992e-05,2]
[355939877,1741722644505,-4360.6,8.992e-05,2]
[355939878,1741722644515,-500.0,8.992e-05,2]
[355939879,1741722644524,-819.55,8.992e-05,2]
[355939880,1741722644533,-500.0,8.992e-05,2]
[355939881,1741722644543,-500.0,8.992e-05,2]
[355939882,1741722644552,-500.0,8.992e-05,2]
[355939883,1741722644564,-500.0,8.992e-05,2]
[355939884,1741722644573,-500.0,8.992e-05,2]
[355939885,1741722644582,-411.42891779,8.992e-05,2]
[355939886,1741722644592,-500.0,8.992e-05,2]
[355939887,1741722644601,-500.0,8.992e-05,2]
[355939888,1741722644611,-500.0,8.992e-05,2]
[355939889,1741722644621,-510.76,8.992e-05,2]
[355939890,1741722644631,-500.0,8.992e-05,2]
[355939891,1741722644640,-500.0,8.992e-05,2]
[355939892,1741722644649,-826.55,8.992e-05,2]
[355939893,1741722644659,-500.0,8.992e-05,2]
[355939894,1741722644668,-500.0,8.992e-05,2]
[355939895,1741722644678,-500.0,8.992e-05,2]
[355939896,1741722644687,-500.0,8.992e-05,2]
[355939897,1741722644697,-500.0,8.992e-05,2]
[355939898,1741722644706,-500.0,8.992e-05,2]
[355939899,1741722644716,-500.0,8.992e-05,2]
[355939900,1741722644725,-1582.3,8.992e-05,2]
[355939901,1741722644734,-500.0,8.992e-05,2]
[355939902,1741722644743,-500.0,8.992e-05,2]
[355939903,1741722644753,-681.38,8.992e-05,2]
[355939904,1741722644762,-979.73,8.992e-05,14]
[355939905,1741722644771,-1035.91,8.992e-05,2]
[355939906,1741722644780,-500.0,8.992e-05,2]
[355939907,1741722644789,-1765.89,8.992e-05,2]
[355939908,1741722644799,-500.0,8.992e-05,2]
[355939909,1741722644808,-500.0,8.992e-05,2]
[355939910,1741722644822,-500.0,8.992e-05,2]
[355939911,1741722644831,-1616.76,8.992e-05,2]
[355939912,1741722644840,-881.78,8.992e-05,2]
[355939913,1741722644850,-500.0,8.992e-05,2]
[355939914,1741722644859,-500.0,8.992e-05,2]
[355939915,1741722644869,-500.0,8.992e-05,2]
[355939916,1741722644878,-292.27835134,8.992e-05,2]
[355939917,1741722644890,-500.0,8.992e-05,2]
[355939918,1741722644900,-1254.6,8.992e-05,2]
[355939919,1741722644910,-1128.06,8.992e-05,2]
[355939920,1741722644920,-500.0,8.992e-05,2]
[355939921,1741722644931,-363.72331239,8.992e-05,2]
[355939922,1741722644940,-1132.32,8.992e-05,2]
[355939923,1741722644950,-1698.65,8.992e-05,2]
[355939924,1741722644959,-500.0,8.992e-05,2]
[355939925,1741722644969,-783.51,8.992e-05,2]
[355939926,1741722644981,-500.0,8.992e-05,2]
[355939927,1741722644990,-500.0,8.992e-05,2]
[355939928,1741722644999,-1241.81,8.992e-05,2]
[355939929,1741722645009,-500.0,8.992e-05,2]
[355939930,1741722645018,-967.03,8.992e-05,2]
[355939931,1741722645028,-500.0,8.992e-05,2]
[355939932,1741722645037,-848.93,8.992e-05,2]
[355939933,1741722645046,-500.0,8.992e-05,2]
[355939934,1741722645055,-980.95,8.992e-05,2]
[355939935,1741722645320,-1169.91,8.992e-05,2]
[355939936,1741722645330,-500.0,8.992e-05,2]
[355939937,1741722645340,-1169.87,8.992e-05,2]
[355939938,1741722645350,-500.0,8.992e-05,2]
[355939939,1741722645359,-571.57,8.992e-05,2]
[355939940,1741722645369,-500.0,8.992e-05,2]
[355939941,1741722645378,-548.26892812,8.992e-05,2]
[355939942,1741722645388,-838.97,8.992e-05,2]
[355939943,1741722645397,-500.0,8.992e-05,2]
[355939944,1741722645406,-500.0,8.992e-05,2]
[355939945,1741722645416,-500.0,8.992e-05,2]
[355939946,1741722645425,-1096.23,8.992e-05,2]
[355939947,1741722645435,-500.0,8.992e-05,2]
[355939948,1741722645444,-293.0031694,8.992e-05,2]
[355939949,1741722645453,-500.0,8.992e-05,2]
[355939950,1741722645463,-500.0,8.992e-05,2]
[355939951,1741722645472,-500.0,8.992e-05,2]
[355939952,1741722645482,-1657.43,8.992e-05,2]